fUSD/lending_fUSD_20240427
["ID","MTS","AMOUNT","RATE_DAILY","PERIOD"]
[323740297,1714227048094,-500.0,0.00011235,2]
[323740298,1714227048104,-1596.37,0.00011235,2]
[323740299,1714227048113,-734.74,0.00011235,2]
[323740300,1714227048123,-500.0,0.00011235,2]
[323740301,1714227048133,-1539.1,0.00011235,2]
[323740302,1714227048144,-577.25,0.00011235,2]
[323740303,1714227048154,-901.74,0.00011235,2]
[323740304,1714227048165,-1139.42,0.00011235,2]
[323740305,1714227048176,-1238.44,0.00011235,2]
[323740306,1714227048186,-2147.88,0.00011235,2]
[323740307,1714227048196,-860.26,0.00011235,2]
[323740308,1714227048206,-150.0,0.00011235,2]
[323740309,1714227048216,-150.0,0.00011235,2]
[323740310,1714227048226,-150.0,0.00011235,2]
[323740311,1714227048238,-150.0,0.00011235,2]
[323740312,1714227048249,-150.497,0.00011235,2]
[323740313,1714227048259,-264.289,0.00011235,2]
[323740314,1714227048271,-150.0,0.00011235,2]
[323740315,1714227048281,-153.964,0.00011235,2]
[323740316,1714227048290,-165.0,0.00011235,2]
[323740317,1714227048299,-150.0,0.00011235,2]
[323740318,1714227048309,-2297.0,0.00011235,2]
[323740319,1714227048319,-970.0,0.00011235,2]
[323740320,1714227048328,-1395.0,0.00011235,2]
[323740321,1714227048338,-462.0,0.00011235,2]
[323740322,1714227048347,-1257.0,0.00011235,2]
[323740323,1714227048356,-1228.0,0.00011235,2]
[323740324,1714227048365,-542.0,0.00011235,2]
[323740325,1714227048374,-610.0,0.00011235,2]
[323740326,1714227048383,-807.0,0.00011235,2]
[323740327,1714227048393,-208.0,0.00011235,2]
[323740328,1714227048402,-1860.0,0.00011235,2]
[323740329,1714227048412,-437.0,0.00011235,2]
[323740330,1714227048421,-3131.0,0.00011235,2]
[323740331,1714227048430,-150.0,0.00011235,2]
[323740332,1714227048440,-420.0,0.00011235,2]
[323740333,1714227048449,-1475.0,0.00011235,2]
[323740334,1714227048458,-2447.0,0.00011235,2]
[323740335,1714227048467,-215.0,0.00011235,2]
[323740336,1714227048476,-1642.0,0.00011235,2]
[323740337,1714227048486,-150.0,0.00011235,2]
[323740338,1714227048495,-482.588,0.00011235,2]
[323740339,1714227048505,-1140.0,0.00011235,2]
[323740340,1714227048515,-1000.0,0.0001125,2]
[323740341,1714227048524,-10000.0,0.0001125,2]
[323740342,1714227048533,-283.99992762,0.0001126,2]
[323740343,1714227048543,-160.6539788,0.00011266,2]
[323740344,1714227048556,-200.00824992,0.0001127,2]
[323740345,1714227048564,-859.0014,0.00011279,2]
[323740346,1714227048574,-209.3939524,0.00011279,2]
[323740347,1714227048583,-161.28134265,0.00011279,2]
[323740348,1714227048594,-1689.0728535,0.00011279,2]
[323740349,1714227048603,-1954.53061182,0.00011279,2]
[323740350,1714227048613,-1259.26248483,0.00011279,2]
[323740351,1714227048623,-196.22365688,0.00011279,2]
[323740352,1714227048632,-1000.0,0.00011288,2]
[323740353,1714227048641,-1001.0,0.000113,2]
[323740354,1714227048650,-187.0,0.0001131,2]
[323740355,1714227048660,-169.07177893,0.00011326,2]
[323740356,1714227048669,-263.35,0.00011338,2]
[323740357,1714227048678,-863.0,0.0001135,2]
[323740358,1714227048687,-500.0,0.0001135,2]
[323740359,1714227048697,-500.0,0.0001135,2]
[323740360,1714227048706,-500.0,0.0001135,2]
[323740361,1714227048716,-500.0,0.0001135,2]
[323740362,1714227048726,-500.0,0.0001135,2]
[323740363,1714227048735,-500.0,0.0001135,2]
[323740364,1714227048744,-500.0,0.0001135,2]
[323740365,1714227048754,-500.0,0.0001135,2]
[323740366,1714227048763,-500.0,0.0001135,2]
[323740367,1714227048772,-500.0,0.0001135,2]
[323740368,1714227048782,-500.0,0.0001135,2]
[323740369,1714227048792,-500.0,0.0001135,2]
[323740370,1714227048801,-500.0,0.0001135,2]
[323740371,1714227048811,-500.0,0.0001135,2]
[323740372,1714227048820,-500.0,0.0001135,2]
[323740373,1714227048830,-500.0,0.0001135,2]
[323740374,1714227048838,-500.0,0.0001135,2]
[323740375,1714227048848,-500.0,0.0001135,2]
[323740376,1714227048857,-500.0,0.0001135,2]
[323740377,1714227048867,-500.0,0.0001135,2]
[323740378,1714227048876,-500.0,0.0001135,2]
[323740379,1714227048886,-500.0,0.0001135,2]
[323740380,1714227048895,-500.0,0.0001135,2]
[323740381,1714227048905,-502.80728048,0.0001135,2]
[323740382,1714227048914,-500.0,0.0001135,2]
[323740383,1714227048923,-500.0,0.0001135,2]
[323740384,1714227048933,-500.0,0.0001135,2]
[323740385,1714227048943,-500.0,0.0001135,2]
[323740386,1714227048953,-500.0,0.0001135,2]
[323740387,1714227048964,-500.0,0.0001135,2]
[323740388,1714227048974,-500.0,0.0001135,2]
[323740389,1714227048984,-173.23,0.0001135,2]
[323740390,1714227048994,-500.0,0.0001135,2]
[323740391,1714227049004,-500.0,0.0001135,2]
[323740392,1714227049018,-500.0,0.0001135,2]
[323740393,1714227049027,-500.0,0.0001135,2]
[323740394,1714227049037,-500.0,0.0001135,2]
[323740395,1714227049048,-500.0,0.0001135,2]
[323740396,1714227049058,-500.0,0.0001135,2]
[323740397,1714227049069,-500.0,0.0001135,2]
[323740398,1714227049079,-500.0,0.0001135,2]
[323740399,1714227049088,-500.0,0.0001135,2]
[323740400,1714227049100,-405.2682414,0.0001135,2]
[323740401,1714227049110,-500.0,0.0001135,2]
[323740402,1714227049120,-500.0,0.0001135,2]
[323740403,1714227049129,-500.0,0.0001135,2]
[323740404,1714227049140,-500.0,0.0001135,2]
[323740405,1714227049150,-500.0,0.0001135,2]
[323740406,1714227049158,-500.0,0.0001135,2]
[323740407,1714227049167,-500.0,0.0001135,2]
[323740408,1714227049176,-500.0,0.0001135,2]
[323740409,1714227049186,-500.0,0.0001135,2]
[323740410,1714227049196,-500.0,0.0001135,2]
[323740411,1714227049206,-500.0,0.0001135,2]
[323740412,1714227049218,-500.0,0.0001135,2]
[323740413,1714227049228,-500.0,0.0001135,2]
[323740414,1714227049238,-500.0,0.0001135,2]
[323740415,1714227049248,-500.0,0.0001135,2]
[323740416,1714227049258,-500.0,0.0001135,2]
[323740417,1714227049268,-562.78,0.0001135,2]
[323740418,1714227049277,-500.0,0.0001135,2]
[323740419,1714227049287,-500.0,0.0001135,2]
[323740420,1714227049296,-500.0,0.0001135,2]
[323740421,1714227049305,-500.0,0.0001135,2]
[323740422,1714227049313,-500.0,0.0001135,2]
[323740423,1714227049323,-500.0,0.0001135,2]
[323740424,1714227049334,-500.0,0.0001135,2]
[323740425,1714227049344,-500.0,0.0001135,2]
[323740426,1714227049354,-500.0,0.0001135,2]
[323740427,1714227049364,-500.0,0.0001135,2]
[323740428,1714227049375,-500.0,0.0001135,2]
[323740429,1714227049385,-500.0,0.0001135,2]
[323740430,1714227049395,-1466.47,0.00011351,2]
[323740431,1714227049404,-3736.11622909,0.00011367,2]
[323740432,1714227049413,-6560.0,0.0001137,2]
[323740433,1714227049424,-500.0,0.0001137,2]
[323740434,1714227049434,-500.0,0.0001137,2]
[323740435,1714227049444,-500.0,0.0001137,2]
[323740436,1714227049454,-832.1087639,0.0001137,2]
[323740437,1714227049464,-2038.23420128,0.00011374,2]
[323740438,1714227049476,-261.85017646,0.00011377,2]
[323740439,1714227049487,-510.6964741,0.00011377,2]
[323740440,1714227049497,-522.51870535,0.00011377,2]
[323740441,1714227049507,-1244.54920757,0.00011377,2]
[323740442,1714227049518,-364.21157432,0.00011377,2]
[323740443,1714227049527,-523.79187868,0.00011377,2]
[323740444,1714227049538,-872.23711713,0.00011377,2]
[323740445,1714227049547,-342.22232771,0.00011377,2]
[323740446,1714227049558,-3016.49898212,0.00011378,2]
[323740447,1714227049568,-3075.58206305,0.00011378,2]
[323740448,1714227049578,-155.22478226,0.00011378,2]
[323740449,1714227049764,-409.15313021,0.00011378,2]
[323740450,1714227049786,-268.35852299,0.00011378,2]
[323740451,1714227049809,-500.0,0.00011378,2]
[323740452,1714227049832,-935.19,0.00011378,2]
[323740453,1714227049854,-2173.66,0.00011378,2]
[323740454,1714227049876,-1399.7,0.00011378,2]
[323740455,1714227049892,-1153.92,0.00011378,2]
[323740456,1714227049901,-738.0,0.00011378,2]
[323740457,1714227049912,-2603.24,0.00011378,2]
[323740458,1714227049922,-500.0,0.00011378,2]
[323740459,1714227049932,-1023.42,0.00011378,2]
[323740460,1714227049942,-5237.2,0.00011378,2]
[323740461,1714227049952,-967.73,0.00011378,2]
[323740462,1714227049963,-1507.96,0.00011378,2]
[323740463,1714227049974,-2311.59,0.00011378,2]
[323740464,1714227049983,-500.0,0.00011378,2]
[323740465,1714227049993,-821.82,0.00011378,2]
[323740466,1714227050004,-1292.0,0.00011378,2]
[323740467,1714227050015,-500.0,0.00011378,2]
[323740468,1714227050026,-4213.90728792,0.00011379,2]
[323740469,1714227050036,-2304.03954008,0.00011379,2]
[323740470,1714227050046,-1672056.07027354,0.00011379,2]
[323740471,1714227050057,-172.00612747,0.00011379,2]
[323740472,1714227050067,-5235.5180855,0.00011379,2]
[323740473,1714227050077,-1466.47,0.00011379,2]
[323740474,1714227050087,-1466.47,0.00011379,2]
[323740475,1714227050096,-1466.47,0.00011379,2]
[323740476,1714227050106,-1466.47,0.00011379,2]
[323740477,1714227050116,-1466.47,0.00011379,2]
[323740478,1714227050126,-1466.47,0.00011379,2]
[323740479,1714227050136,-1466.47,0.00011379,2]
[323740480,1714227050146,-1466.6372173,0.00011379,2]
[323740481,1714227050155,-3666740.26813177,0.0001138,2]
[323740482,1714227050165,-151.294023,0.0001138,2]
[323740483,1714227050174,-3000.0,0.0001138,2]
[323740484,1714227050183,-283.99992762,0.00011388,2]
[323740485,1714227050194,-250.0,0.000114,2]
[323740486,1714227050203,-254.3,0.000114,2]
[323740487,1714227050213,-1648.0,0.000114,2]
[323740488,1714227050222,-206.0,0.0001143,2]
[323740489,1714227050232,-500.0,0.00011435,2]
[323740490,1714227050242,-500.0,0.00011435,2]
[323740491,1714227050251,-500.0,0.00011435,2]
[323740492,1714227050260,-500.0,0.00011435,2]
[323740493,1714227050270,-500.0,0.00011435,2]
[323740494,1714227050280,-282.42,0.00011435,2]
[323740495,1714227050289,-500.0,0.00011435,2]
[323740496,1714227050299,-500.0,0.00011435,2]
[323740497,1714227050308,-500.0,0.00011435,2]
[323740498,1714227050319,-500.0,0.00011435,2]
[323740499,1714227050329,-500.0,0.00011435,2]
[323740500,1714227050338,-500.0,0.00011435,2]
[323740501,1714227050348,-500.0,0.00011435,2]
[323740502,1714227050359,-500.0,0.00011435,2]
[323740503,1714227050370,-500.0,0.00011435,2]
[323740504,1714227050381,-500.0,0.00011435,2]
[323740505,1714227050391,-500.0,0.00011435,2]
[323740506,1714227050400,-500.0,0.00011435,2]
[323740507,1714227050410,-500.0,0.00011435,2]
[323740508,1714227050420,-500.0,0.00011435,2]
[323740509,1714227050431,-500.0,0.00011435,2]
[323740510,1714227050442,-500.0,0.00011435,2]
[323740511,1714227050453,-500.0,0.00011435,2]
[323740512,1714227050464,-500.0,0.00011435,2]
[323740513,1714227050474,-646.82,0.00011435,2]
[323740514,1714227050483,-500.0,0.00011435,2]
[323740515,1714227050494,-500.0,0.00011435,2]
[323740516,1714227050504,-500.0,0.00011435,2]
[323740517,1714227050514,-500.0,0.00011435,2]
[323740518,1714227050524,-500.0,0.00011435,2]
[323740519,1714227050534,-910.78,0.00011435,2]
[323740520,1714227050543,-500.0,0.00011435,2]
[323740521,1714227050555,-280.97900624,0.00011435,2]
[323740522,1714227050566,-500.0,0.00011435,2]
[323740523,1714227050577,-591.84,0.00011435,2]
[323740524,1714227050587,-449.51,0.00011435,2]
[323740525,1714227050598,-500.0,0.00011435,2]
[323740526,1714227050609,-500.0,0.00011435,2]
[323740527,1714227050620,-500.0,0.00011435,2]
[323740528,1714227050632,-500.0,0.00011435,2]
[323740529,1714227050642,-500.0,0.00011435,2]
[323740530,1714227050653,-639.9,0.00011435,2]
[323740531,1714227050663,-500.0,0.00011435,2]
[323740532,1714227050673,-500.0,0.00011435,2]
[323740533,1714227050684,-500.0,0.00011435,2]
[323740534,1714227050694,-676.92,0.00011435,2]
[323740535,1714227050704,-500.0,0.00011435,2]
[323740536,1714227050715,-500.0,0.00011435,2]
[323740537,1714227050725,-500.0,0.00011435,2]
[323740538,1714227050735,-500.0,0.00011435,2]
[323740539,1714227050745,-500.0,0.00011435,2]
[323740540,1714227050757,-500.0,0.00011435,2]
[323740541,1714227050768,-547.26,0.00011435,2]
[323740542,1714227050779,-592.31,0.00011435,2]
[323740543,1714227050790,-500.0,0.00011435,2]
[323740544,1714227050801,-574.01,0.00011435,2]
[323740545,1714227050811,-500.0,0.00011435,2]
[323740546,1714227050821,-200.83,0.00011435,2]
[323740547,1714227050831,-500.0,0.00011435,2]
[323740548,1714227050842,-500.0,0.00011435,2]
[323740549,1714227050852,-500.0,0.00011435,2]
[323740550,1714227050862,-500.0,0.00011435,2]
[323740551,1714227050872,-500.0,0.00011435,2]
[323740552,1714227050883,-500.0,0.00011435,2]
[323740553,1714227050892,-500.0,0.00011435,2]
[323740554,1714227050901,-500.0,0.00011435,2]
[323740555,1714227050910,-500.0,0.00011435,2]
[323740556,1714227050919,-500.0,0.00011435,2]
[323740557,1714227050930,-500.0,0.00011435,2]
[323740558,1714227050940,-500.0,0.00011435,2]
[323740559,1714227050950,-500.0,0.00011435,2]
[323740560,1714227050961,-500.0,0.00011435,2]
[323740561,1714227050972,-500.0,0.00011435,2]
[323740562,1714227050982,-939.62,0.00011435,2]
[323740563,1714227050992,-500.0,0.00011435,2]
[323740564,1714227051002,-500.0,0.00011435,2]
[323740565,1714227051013,-500.0,0.00011435,2]
[323740566,1714227051023,-655.09,0.00011435,2]
[323740567,1714227051033,-500.0,0.00011435,2]
[323740568,1714227051043,-708.93,0.00011435,2]
[323740569,1714227051053,-500.0,0.00011435,2]
[323740570,1714227051063,-500.0,0.00011435,2]
[323740571,1714227051074,-500.0,0.00011435,2]
[323740572,1714227051084,-500.0,0.00011435,2]
[323740573,1714227051094,-500.0,0.00011435,2]
[323740574,1714227051104,-552.47,0.00011435,2]
[323740575,1714227051115,-500.0,0.00011435,2]
[323740576,1714227051126,-500.0,0.00011435,2]
[323740577,1714227051135,-500.0,0.00011435,2]
[323740578,1714227051145,-500.0,0.00011435,2]
[323740579,1714227051156,-926.45,0.00011435,2]
[323740580,1714227051167,-500.0,0.00011435,2]
[323740581,1714227051178,-1523.57,0.00011435,2]
[323740582,1714227051188,-500.0,0.00011435,2]
[323740583,1714227051199,-500.0,0.00011435,2]
[323740584,1714227051209,-500.0,0.00011435,2]
[323740585,1714227051221,-500.0,0.00011435,2]
[323740586,1714227051231,-620.85,0.00011435,2]
[323740587,1714227051241,-624.43,0.00011435,2]
[323740588,1714227051251,-500.0,0.00011435,2]
[323740589,1714227051261,-621.01,0.00011435,2]
[323740590,1714227051272,-7590.37,0.00011435,2]
[323740591,1714227051282,-500.0,0.00011435,2]
[323740592,1714227051293,-500.0,0.00011435,2]
[323740593,1714227051302,-500.0,0.00011435,2]
[323740594,1714227051313,-500.0,0.00011435,2]
[323740595,1714227051324,-500.0,0.00011435,2]
[323740596,1714227051335,-500.0,0.00011435,2]
[323740597,1714227051345,-552.37,0.00011435,2]
[323740598,1714227051354,-500.0,0.00011435,2]
[323740599,1714227051364,-500.0,0.00011435,2]
[323740600,1714227051374,-630.82,0.00011435,2]
[323740601,1714227051383,-500.0,0.00011435,2]
[323740602,1714227051392,-730.04,0.00011435,2]
[323740603,1714227051401,-2425.52,0.00011435,2]
[323740604,1714227051410,-500.0,0.00011435,2]
[323740605,1714227051419,-1333.12,0.00011435,2]
[323740606,1714227051428,-500.0,0.00011435,2]
[323740607,1714227051437,-500.0,0.00011435,2]
[323740608,1714227051447,-500.0,0.00011435,2]
[323740609,1714227051457,-500.0,0.00011435,2]
[323740610,1714227051467,-500.0,0.00011435,2]
[323740611,1714227051478,-500.0,0.00011435,2]
[323740612,1714227051488,-500.0,0.00011435,2]
[323740613,1714227051499,-500.0,0.00011435,2]
[323740614,1714227051510,-1734.77,0.00011435,2]
[323740615,1714227051520,-594.85,0.00011435,2]
[323740616,1714227051531,-1682.66,0.00011435,2]
[323740617,1714227051542,-500.0,0.00011435,2]
[323740618,1714227051555,-500.0,0.00011435,2]
[323740619,1714227051565,-500.0,0.00011435,2]
[323740620,1714227051576,-413.75,0.00011435,2]
[323740621,1714227051587,-1628.23,0.00011435,2]
[323740622,1714227051599,-500.0,0.00011435,2]
[323740623,1714227051610,-500.0,0.00011435,2]
[323740624,1714227051620,-500.0,0.00011435,2]
[323740625,1714227051632,-1137.53,0.00011435,2]
[323740626,1714227051643,-500.0,0.00011435,2]
[323740627,1714227051653,-508.43,0.00011435,2]
[323740628,1714227051662,-595.4,0.00011435,2]
[323740629,1714227051671,-500.0,0.00011435,2]
[323740630,1714227051681,-500.0,0.00011435,2]
[323740631,1714227051690,-500.0,0.00011435,2]
[323740632,1714227051699,-1525.07,0.00011435,2]
[323740633,1714227051708,-495.97076605,0.00011436,2]
[323740634,1714227051717,-1000.0,0.000115,2]
[323740635,1714227051726,-500.0,0.00011506,2]
[323740636,1714227051735,-500.0,0.00011506,2]
[323740637,1714227051745,-500.0,0.00011506,2]
[323740638,1714227051756,-500.0,0.00011506,2]
[323740639,1714227051767,-500.0,0.00011506,2]
[323740640,1714227051777,-601.09,0.00011506,2]
[323740641,1714227051787,-562.57052179,0.00011506,2]
[323740642,1714227051797,-500.0,0.00011506,2]
[323740643,1714227051808,-500.0,0.00011506,2]
[323740644,1714227051819,-500.0,0.00011506,2]
[323740645,1714227051830,-500.0,0.00011506,2]
[323740646,1714227051840,-500.0,0.00011506,2]
[323740647,1714227051850,-500.0,0.00011506,2]
[323740648,1714227051860,-500.0,0.00011506,2]
[323740649,1714227051870,-500.0,0.00011506,2]
[323740650,1714227051880,-500.0,0.00011506,2]
[323740651,1714227051890,-500.0,0.00011506,2]
[323740652,1714227051901,-500.0,0.00011506,2]
[323740653,1714227051911,-379.36531968,0.00011506,2]
[323740654,1714227051922,-182.0,0.00011506,2]
[323740655,1714227051931,-500.0,0.00011506,2]
[323740656,1714227051942,-500.0,0.00011506,2]
[323740657,1714227051952,-500.0,0.00011506,2]
[323740658,1714227051962,-500.0,0.00011506,2]
[323740659,1714227051973,-500.0,0.00011506,2]
[323740660,1714227051982,-500.0,0.00011506,2]
[323740661,1714227051993,-500.0,0.00011506,2]
[323740662,1714227052003,-500.0,0.00011506,2]
[323740663,1714227052013,-500.0,0.00011506,2]
[323740664,1714227052023,-500.0,0.00011506,2]
[323740665,1714227052032,-500.0,0.00011506,2]
[323740666,1714227052042,-500.0,0.00011506,2]
[323740667,1714227052051,-1620.38,0.00011506,2]
[323740668,1714227052059,-500.0,0.00011506,2]
[323740669,1714227052068,-500.0,0.00011506,2]
[323740670,1714227052078,-636.71,0.00011506,2]
[323740671,1714227052088,-500.0,0.00011506,2]
[323740672,1714227052099,-747.0,0.00011506,2]
[323740673,1714227052108,-500.0,0.00011506,2]
[323740674,1714227052118,-500.0,0.00011506,2]
[323740675,1714227052128,-500.0,0.00011506,2]
[323740676,1714227052138,-500.0,0.00011506,2]
[323740677,1714227052148,-500.0,0.00011506,2]
[323740678,1714227052162,-500.0,0.00011506,2]
[323740679,1714227052173,-500.0,0.00011506,2]
[323740680,1714227052194,-520.92,0.00011506,2]
[323740681,1714227052208,-500.0,0.00011506,2]
[323740682,1714227052232,-500.0,0.00011506,2]
[323740683,1714227052246,-649.36,0.00011506,2]
[323740684,1714227052256,-500.0,0.00011506,2]
[323740685,1714227052265,-500.0,0.00011506,2]
[323740686,1714227052275,-500.0,0.00011506,2]
[323740687,1714227052285,-500.0,0.00011506,2]
[323740688,1714227052296,-500.0,0.00011506,2]
[323740689,1714227052306,-2000.0,0.00011506,2]
[323740690,1714227052316,-500.0,0.00011506,2]
[323740691,1714227052327,-500.0,0.00011506,2]
[323740692,1714227052337,-500.0,0.00011506,2]
[323740693,1714227052347,-500.0,0.00011506,2]
[323740694,1714227052357,-500.0,0.00011506,2]
[323740695,1714227052366,-500.0,0.00011506,2]
[323740696,1714227052376,-850.26,0.00011506,2]
[323740697,1714227052386,-500.0,0.00011506,2]
[323740698,1714227052395,-500.0,0.00011506,2]
[323740699,1714227052404,-500.0,0.00011506,2]
[323740700,1714227052413,-500.0,0.00011506,2]
[323740701,1714227052423,-500.0,0.00011506,2]
[323740702,1714227052433,-500.0,0.00011506,2]
[323740703,1714227052442,-500.0,0.00011506,2]
[323740704,1714227052453,-500.0,0.00011506,2]
[323740705,1714227052463,-500.0,0.00011506,2]
[323740706,1714227052474,-500.0,0.00011506,2]
[323740707,1714227052485,-580.92,0.00011506,2]
[323740708,1714227052495,-500.0,0.00011506,2]
[323740709,1714227052505,-500.0,0.00011506,2]
[323740710,1714227052515,-500.0,0.00011506,2]
[323740711,1714227052527,-316.3834645,0.00011506,2]
[323740712,1714227052538,-500.0,0.00011506,2]
[323740713,1714227052548,-11602.13,0.00011506,2]
[323740714,1714227052562,-500.0,0.00011506,2]
[323740715,1714227052573,-500.0,0.00011506,2]
[323740716,1714227052583,-527.4,0.00011506,2]
[323740717,1714227052592,-846.12,0.00011506,2]
[323740718,1714227052604,-500.0,0.00011506,2]
[323740719,1714227052622,-753.51,0.00011506,2]
[323740720,1714227052644,-500.0,0.00011506,2]
[323740721,1714227052653,-1275.12,0.00011506,2]
[323740722,1714227052664,-1313.14,0.00011506,2]
[323740723,1714227052675,-577.0,0.00011506,2]
[323740724,1714227052685,-1721.96,0.00011506,2]
[323740725,1714227052696,-500.0,0.00011506,2]
[323740726,1714227052706,-749.15,0.00011506,2]
[323740727,1714227052717,-500.0,0.00011506,2]
[323740728,1714227052727,-1374.52,0.00011506,2]
[323740729,1714227052737,-872.29,0.00011506,2]
[323740730,1714227052748,-500.0,0.00011506,2]
[323740731,1714227052757,-687.0,0.00011506,2]
[323740732,1714227052766,-1361.65,0.00011506,2]
[323740733,1714227052776,-18149.15,0.00011506,2]
[323740734,1714227052786,-500.0,0.00011506,2]
[323740735,1714227052795,-500.0,0.00011506,2]
[323740736,1714227052805,-500.0,0.00011506,2]
[323740737,1714227052816,-500.0,0.00011506,2]
[323740738,1714227052826,-500.0,0.00011506,2]
[323740739,1714227052836,-596.88,0.00011506,2]
[323740740,1714227052846,-1288.24,0.00011506,2]
[323740741,1714227052857,-500.0,0.00011506,2]
[323740742,1714227052868,-500.0,0.00011506,2]
[323740743,1714227052878,-1242.88,0.00011506,2]
[323740744,1714227052889,-1012.52,0.00011506,2]
[323740745,1714227052898,-1247.22,0.00011506,2]
[323740746,1714227052908,-909.14,0.00011506,2]
[323740747,1714227052920,-743.48,0.00011506,2]
[323740748,1714227052931,-3099.94,0.00011506,2]
[323740749,1714227052942,-894.36,0.00011506,2]
[323740750,1714227052952,-1029.15,0.00011506,2]
[323740751,1714227052961,-500.0,0.00011506,2]
[323740752,1714227052970,-629.22,0.00011506,2]
[323740753,1714227052979,-1225.48,0.00011506,2]
[323740754,1714227052989,-500.0,0.00011506,2]
[323740755,1714227052999,-1156.35,0.00011506,2]
[323740756,1714227053009,-1844.99,0.00011506,2]
[323740757,1714227053018,-1619.27,0.00011506,2]
[323740758,1714227053028,-1066.24,0.00011506,2]
[323740759,1714227053037,-500.0,0.00011506,2]
[323740760,1714227053047,-1350.26,0.00011506,2]
[323740761,1714227053056,-1720.33,0.00011506,2]
[323740762,1714227053065,-500.0,0.00011506,2]
[323740763,1714227053075,-500.0,0.00011506,2]
[323740764,1714227053085,-500.0,0.00011506,2]
[323740765,1714227053094,-1240.19,0.00011506,2]
[323740766,1714227053104,-830.29,0.00011506,2]
[323740767,1714227053114,-1030.22,0.00011506,2]
[323740768,1714227053124,-500.0,0.00011506,2]
[323740769,1714227053134,-567.86,0.00011506,2]
[323740770,1714227053143,-4668.38,0.00011506,2]
[323740771,1714227053153,-832.62,0.00011506,2]
[323740772,1714227053162,-1528.89,0.00011506,2]
[323740773,1714227053325,-573.57,0.00011506,2]
[323740774,1714227053335,-500.0,0.00011506,2]
[323740775,1714227053345,-1341.81,0.00011506,2]
[323740776,1714227053356,-564.72,0.00011506,2]
[323740777,1714227053366,-500.0,0.00011506,2]
[323740778,1714227053377,-4767.18,0.00011506,2]
[323740779,1714227053388,-636.13,0.00011506,2]
[323740780,1714227053397,-846.66,0.00011506,2]
[323740781,1714227053408,-1929.36,0.00011506,2]
[323740782,1714227053419,-2025.38,0.00011506,2]
[323740783,1714227053429,-1836.74,0.00011506,2]
[323740784,1714227053441,-321.25508729,0.00011506,2]
[323740785,1714227053452,-663.91,0.00011506,2]
[323740786,1714227053462,-1678.47,0.00011506,2]
[323740787,1714227053472,-500.0,0.00011506,2]
[323740788,1714227053484,-586.99,0.00011506,2]
[323740789,1714227053494,-500.0,0.00011506,2]
[323740790,1714227053504,-757.02,0.00011506,2]
[323740791,1714227053515,-702.58,0.00011506,2]
[323740792,1714227053525,-5033.54,0.00011506,2]
[323740793,1714227053535,-878.8,0.00011506,2]
[323740794,1714227053545,-500.0,0.00011506,2]
[323740795,1714227053558,-1022.59,0.00011506,2]
[323740796,1714227053568,-690.34,0.00011506,2]